bitfinex-derivatives/quotes_SOLF0:USTF0_20250821
["timestamp","ask_amount","ask_price","bid_price","bid_amount"]
[1755773610287,0.17,184.48,184.44,2.96]
[1755773611099,0.17,184.47,184.44,2.96]
[1755773613492,0.17,184.44,184.41,2.96]
[1755773613902,2.53339285,184.43,184.32,8.42789823]
[1755773614097,2.53339285,184.43,184.39,2.96]
[1755773614300,0.17,184.42,184.39,2.96]
[1755773614998,2.36339285,184.43,184.4,2.96]
[1755773616093,2.36339285,184.43,184.32,2.36339285]
[1755773616298,2.36339285,184.43,184.4,2.96]
[1755773616504,2.36339285,184.43,184.41,2.96]
[1755773618100,0.17,184.45,184.41,2.96]
[1755773618599,2.53339285,184.44,184.41,2.96]
[1755773619693,2.36339285,184.44,184.39,2.96]
[1755773619902,2.36339285,184.44,184.4,2.96]
[1755773620093,2.53339285,184.44,184.4,2.96]
[1755773620498,2.53339285,184.44,184.41,2.96]
[1755773621704,0.17,184.43,184.38,2.96]
[1755773622002,0.17,184.43,184.4,2.96]
[1755773622502,2.36339285,184.44,184.38,2.96]
[1755773623802,2.36339285,184.44,184.38,5.4238]
[1755773624004,2.36339285,184.44,184.39,2.96]
[1755773624605,2.36339285,184.44,184.41,2.96]
[1755773625105,2.53339285,184.44,184.41,2.96]
[1755773626702,2.53339285,184.44,184.38,5.4238]
[1755773626906,2.53339285,184.44,184.39,2.96]
[1755773627608,2.53339285,184.44,184.38,5.4238]
[1755773627905,2.53339285,184.44,184.41,2.96]
[1755773636314,2.53339285,184.44,184.38,5.4238]
[1755773636519,2.36339285,184.44,184.39,2.88]
[1755773636720,2.53339285,184.44,184.41,2.88]
[1755773637318,2.53339285,184.44,184.4,2.88]
[1755773637519,2.53339285,184.44,184.42,2.88]
[1755773645420,2.53339285,184.44,184.35,2.88]
[1755773645723,2.53339285,184.44,184.36,5.4242]
[1755773645926,2.53339285,184.44,184.37,2.88]
[1755773647027,2.53339285,184.44,184.33,8.42789823]
[1755773647028,2.36339285,184.44,184.39,2.88]
[1755773647824,2.53339285,184.44,184.39,2.88]
[1755773648322,0.17,184.43,184.4,2.88]
[1755773648524,0.17,184.43,184.41,2.88]
[1755773648927,0.17,184.42,184.39,2.88]
[1755773649329,0.17,184.41,184.39,2.88]
[1755773649832,0.17,184.4,184.36,2.88]
[1755773650025,0.17,184.4,184.35,5.4247]
[1755773650228,2.36339285,184.41,184.35,5.4247]
[1755773650431,2.53339285,184.41,184.38,2.88]
[1755773651431,0.17,184.4,184.38,2.88]
[1755773653827,2.36339285,184.39,184.31,8.94450538]
[1755773654027,2.36339285,184.39,184.33,5.4251]
[1755773654331,2.53339285,184.39,184.37,2.88]
[1755773655132,2.36339285,184.4,184.35,2.88]
[1755773656134,2.36339285,184.4,184.35,8.3046]
[1755773656334,2.36339285,184.4,184.37,2.88]
[1755773656534,2.36339285,184.4,184.38,2.88]
[1755773658436,2.36339285,184.4,184.35,2.88]
[1755773658635,2.36339285,184.4,184.36,2.88]
[1755773658936,2.53339285,184.42,184.36,2.88]
[1755773659639,2.53339285,184.42,184.37,2.88]
[1755773659938,2.53339285,184.42,184.39,2.88]
[1755773660535,2.53339285,184.42,184.4,2.88]
[1755773661840,2.36339285,184.42,184.37,2.88]
[1755773662038,2.36339285,184.45,184.4,2.88]
[1755773662240,2.53339285,184.45,184.39,5.4235]
[1755773662435,2.53339285,184.45,184.42,2.88]
[1755773662838,2.53339285,184.45,184.43,2.77]
[1755773663642,2.53339285,184.45,184.35,2.77]
[1755773664433,2.53339285,184.45,184.37,5.424]
[1755773664638,2.53339285,184.45,184.38,2.77]
[1755773669444,2.53339285,184.45,184.39,2.77]
[1755773672442,2.53339285,184.45,184.38,2.77]
[1755773673951,0.17,184.45,184.38,8.1938]
[1755773674145,2.36339285,184.44,184.38,5.4238]
[1755773674346,2.36339285,184.44,184.4,2.77]
[1755773674648,2.36339285,184.44,184.42,2.77]
[1755773674848,0.17,184.45,184.42,2.77]
[1755773675048,2.53339285,184.45,184.42,2.77]
[1755773676950,0.17,184.44,184.42,2.77]
[1755773678354,1.50985531,184.43,184.42,2.77]
[1755773680253,1.50985531,184.43,184.37,2.77]
[1755773680451,1.50985531,184.41,184.37,2.77]
[1755773680647,0.17,184.43,184.39,2.77]
[1755773680852,1.50985531,184.41,184.38,2.77]
[1755773681745,1.50985531,184.41,184.39,2.77]
[1755773682147,1.50985531,184.43,184.38,2.77]
[1755773682346,1.50985531,184.45,184.4,2.77]
[1755773682752,1.50985531,184.47,184.42,2.77]
[1755773683548,1.50985531,184.47,184.43,2.77]
[1755773683956,1.50985531,184.47,184.42,5.4226]
[1755773684356,2.52799829,184.49,184.46,2.77]
[1755773685758,0.17,184.48,184.46,2.77]
[1755773690155,2.35799829,184.49,184.42,5.4225]
[1755773690362,2.35799829,184.49,184.44,2.77]
[1755773691562,2.52799829,184.49,184.45,2.77]
[1755773691762,2.52799829,184.49,184.46,2.77]
[1755773693264,2.52799829,184.49,184.46,2.81]
[1755773693659,2.52799829,184.49,184.47,2.81]
[1755773693862,2.35799829,184.51,184.48,2.81]
[1755773694064,132.98,184.52,184.49,2.81]
[1755773694360,2.35799829,184.51,184.49,2.81]
[1755773695566,2.51799829,184.51,184.49,2.81]
[1755773696461,2.35799829,184.51,184.43,5.4222]
[1755773696665,2.51799829,184.51,184.43,5.4222]
[1755773696966,2.51799829,184.51,184.48,2.81]
[1755773697667,0.16,184.5,184.48,2.81]
[1755773700364,2.35799829,184.51,184.4,2.35799829]
[1755773700670,2.51799829,184.55,184.46,2.81]
[1755773701269,2.51799829,184.53,184.46,2.81]
[1755773701466,2.51799829,184.49,184.39,2.81]
[1755773701671,2.35799829,184.47,184.39,2.81]
[1755773701862,2.51799829,184.47,184.39,2.81]
[1755773702565,2.35799829,184.45,184.39,2.81]
[1755773703371,2.35799829,184.45,184.4,2.81]
[1755773703566,2.35799829,184.45,184.35,2.81]
[1755773703766,2.35799829,184.43,184.35,2.81]
[1755773704868,2.35799829,184.43,184.37,5.424]
[1755773705069,2.51799829,184.43,184.4,2.81]
[1755773705374,2.35799829,184.43,184.38,2.81]
[1755773705773,2.35799829,184.44,184.39,2.81]
[1755773705968,2.35799829,184.44,184.38,5.4238]
[1755773706371,2.35799829,184.44,184.41,2.81]
[1755773706566,2.35799829,184.44,184.42,2.81]
[1755773707075,2.35799829,184.44,184.39,5.4235]
[1755773707272,2.35799829,184.46,184.36,2.35799829]
[1755773707473,2.35799829,184.48,184.37,2.81]
[1755773707674,2.35799829,184.48,184.4,5.423]
[1755773707876,2.35799829,184.48,184.41,2.81]
[1755773708182,2.35799829,184.48,184.41,8.2328]
[1755773708472,2.35799829,184.48,184.42,2.81]
[1755773709071,2.35799829,184.48,184.42,8.2324]
[1755773709268,2.35799829,184.48,184.42,5.4224]
[1755773709482,2.35799829,184.48,184.45,2.81]
[1755773710382,2.35799829,184.48,184.43,2.81]
[1755773710581,2.35799829,184.48,184.44,2.81]
[1755773710781,2.35799829,184.48,184.45,2.81]
[1755773711482,2.51799829,184.48,184.45,2.81]
[1755773713379,2.51799829,184.48,184.46,2.81]
[1755773719086,2.35799829,184.48,184.47,2.81]
[1755773719488,2.52799829,184.48,184.39,2.81]
[1755773721691,2.52799829,184.48,184.41,2.81]
[1755773722593,2.52799829,184.48,184.41,8.2329]
[1755773722795,2.52799829,184.48,184.42,2.89]
[1755773722989,138.72474384,184.53,184.42,2.89]
[1755773722990,2.35799829,184.51,184.42,2.89]
[1755773723193,2.52799829,184.53,184.46,2.89]
[1755773723687,2.52799829,184.53,184.46,5.4215]
[1755773723892,2.52799829,184.53,184.47,2.89]
[1755773724493,2.35799829,184.56,184.48,2.89]
[1755773725092,2.35799829,184.56,184.49,2.89]
[1755773725296,132.85,184.57,184.49,2.89]
[1755773725493,2.35799829,184.56,184.49,2.89]
[1755773726095,0.17,184.55,184.49,2.89]
[1755773726587,2.35799829,184.53,184.49,2.89]
[1755773726890,0.17,184.51,184.49,2.89]
[1755773727098,0.17,184.51,184.47,2.89]
[1755773727296,0.17,184.51,184.48,2.89]
[1755773727596,0.17,184.52,184.45,5.4218]
[1755773727796,2.35799829,184.53,184.51,2.89]
[1755773727993,2.52799829,184.53,184.51,2.89]
[1755773728496,2.35799829,184.53,184.47,2.89]
[1755773729598,0.17,184.52,184.47,2.89]
[1755773729900,0.17,184.5,184.47,2.89]
[1755773731293,0.17,184.49,184.44,2.89]
[1755773731497,2.35799829,184.51,184.43,2.89]
[1755773732495,2.35799829,184.47,184.39,2.89]
[1755773734402,2.35799829,184.47,184.4,2.89]
[1755773735104,2.35799829,184.47,184.41,2.89]
[1755773735310,2.52799829,184.47,184.41,2.89]
[1755773735714,2.35799829,184.47,184.41,2.89]
[1755773738411,2.35799829,184.45,184.41,2.89]
[1755773738614,0.17,184.44,184.41,2.89]
[1755773739414,2.35799829,184.45,184.33,8.42250367]
[1755773739613,2.35799829,184.45,184.43,2.89]
[1755773739816,2.35799829,184.5,184.43,2.89]
[1755773740015,2.52799829,184.46,184.43,2.89]
[1755773740215,0.17,184.45,184.43,2.89]
[1755773740618,0.17,184.45,184.41,2.89]
[1755773740816,0.17,184.45,184.39,2.89]
[1755773743814,2.52799829,184.44,184.4,2.89]
[1755773744013,0.17,184.43,184.4,2.89]
[1755773744819,0.17,184.43,184.41,2.89]
[1755773745423,2.35799829,184.44,184.41,2.89]
[1755773745621,2.52799829,184.44,184.41,2.89]
[1755773746532,2.52799829,184.44,184.39,2.89]
[1755773746723,2.35799829,184.45,184.41,2.89]
[1755773746922,2.35799829,184.45,184.42,2.89]
[1755773747424,2.35799829,184.45,184.35,2.35799829]
[1755773747621,2.35799829,184.45,184.36,2.89]
[1755773748527,2.35799829,184.45,184.39,5.4233]
[1755773748732,2.35799829,184.45,184.41,2.89]
[1755773748931,2.35799829,184.45,184.42,2.89]
[1755773749130,2.35799829,184.45,184.4,2.89]
[1755773749431,2.35799829,184.45,184.39,5.4233]
[1755773749638,2.35799829,184.45,184.43,2.89]
[1755773749831,2.52799829,184.45,184.4,2.89]
[1755773750033,2.52799829,184.45,184.41,2.89]
[1755773750232,2.52799829,184.45,184.39,5.4233]
[1755773750733,2.52799829,184.45,184.42,2.89]
[1755773751129,2.52799829,184.45,184.39,5.4233]
[1755773751334,2.35799829,184.45,184.43,2.89]
[1755773752335,2.52799829,184.45,184.43,2.89]
[1755773754331,2.35799829,184.45,184.43,2.89]
[1755773755834,2.52799829,184.45,184.33,2.35799829]
[1755773756039,2.35799829,184.43,184.34,2.86]
[1755773756437,2.35799829,184.43,184.37,5.4241]
[1755773756637,2.35799829,184.43,184.38,2.86]
[1755773757033,2.35799829,184.44,184.38,2.86]
[1755773757239,2.35799829,184.44,184.4,2.86]
[1755773757432,2.35799829,184.44,184.38,5.4238]
[1755773757639,2.52799829,184.44,184.42,2.86]
[1755773758839,2.35799829,184.44,184.42,2.86]
[1755773760038,0.17,184.47,184.42,2.86]
[1755773760234,101.23313846,184.51,184.36,2.35799829]
[1755773760439,2.35799829,184.49,184.39,2.86]
[1755773760643,2.35799829,184.49,184.44,5.4219]
[1755773760842,2.35799829,184.49,184.45,2.86]
[1755773761039,2.35799829,184.49,184.44,5.4219]
[1755773761245,2.35799829,184.49,184.47,2.86]
[1755773762241,2.35799829,184.49,184.43,5.4223]
[1755773762242,2.35799829,184.49,184.43,2.86]
[1755773762437,0.17,184.46,184.43,2.86]
[1755773762640,2.52799829,184.49,184.4,2.86]
[1755773763043,2.52799829,184.49,184.41,5.4229]
[1755773763340,2.52799829,184.49,184.42,2.86]
[1755773764349,2.35799829,184.47,184.42,2.86]
[1755773764547,0.17,184.46,184.43,2.86]
[1755773765147,2.35799829,184.47,184.4,5.4232]
[1755773765348,2.35799829,184.47,184.45,2.86]
[1755773765548,2.52799829,184.47,184.4,5.4232]
[1755773765748,2.52799829,184.47,184.41,2.86]
[1755773766453,0.17,184.44,184.41,2.86]
[1755773767042,2.35799829,184.43,184.37,2.86]
[1755773767350,2.35799829,184.41,184.39,2.86]
[1755773767650,2.35799829,184.41,184.4,2.86]
[1755773767949,2.52799829,184.43,184.4,2.86]
[1755773768346,1752.7653736,184.75,184.41,2.35799829]
[1755773768347,6.00474384,184.65,184.41,2.35799829]
[1755773768546,2.35799829,184.86,184.6,2.86]
[1755773768751,2.35799829,184.8,184.72,6.0562694]
[1755773768950,364.44,184.87,184.74,6.0562694]
[1755773769153,2.35799829,184.83,184.76,4.54059708]
[1755773769448,2.35799829,184.95,184.79,4.54059708]
[1755773769449,2.35799829,184.89,184.79,4.54059708]
[1755773769653,134.28,184.91,184.8,1.99447652]
[1755773769953,2.35799829,184.87,184.77,2.86]
[1755773770351,3.82731799,184.9,184.77,2.86]
[1755773770549,3.82731799,184.87,184.73,2.86]
[1755773771051,3.82731799,184.81,184.68,2.86]
[1755773771353,134.54,184.8,184.68,2.86]
[1755773771754,364.44,184.8,184.68,2.86]
[1755773771952,3.82731799,184.74,184.62,2.86]
[1755773773248,134.64,184.79,184.62,2.86]
[1755773773446,3.82731799,184.72,184.62,2.86]
[1755773774046,3.82731799,184.69,184.62,2.86]
[1755773774252,3.82731799,184.66,184.56,2.86]
[1755773775159,2.88731799,184.66,184.56,2.86]
[1755773776153,3.82731799,184.65,184.56,2.86]
[1755773776360,3.82731799,184.68,184.56,2.86]
[1755773777354,3.82731799,184.65,184.56,2.86]
[1755773778158,3.82731799,184.68,184.56,2.86]
[1755773780651,3.82731799,184.65,184.56,2.86]
[1755773780857,3.82731799,184.62,184.56,2.86]
[1755773781057,3.82731799,184.62,184.47,2.86]
[1755773782160,3.82731799,184.62,184.47,8.2812]
[1755773782359,3.82731799,184.62,184.48,2.86]
[1755773782957,3.82731799,184.59,184.48,2.86]
[1755773783155,3.82731799,184.56,184.48,2.86]
[1755773783359,3.82731799,184.56,184.39,3.82731799]
[1755773783558,3.82731799,184.53,184.44,3.03]
[1755773785058,3.82731799,184.5,184.36,9.25171799]
[1755773785262,3.82731799,184.5,184.37,3.03]
[1755773787360,364.14,184.54,184.34,4.7701136]
[1755773787361,3.82731799,184.44,184.34,0.94279561]
[1755773787559,3.82731799,184.44,184.33,3.03]
[1755773787758,3.82731799,184.44,184.3,0.94385679]
[1755773787957,3.82731799,184.41,184.3,0.94385679]
[1755773788162,3.82731799,184.41,184.31,3.03]
[1755773788964,3.82731799,184.38,184.31,3.03]
[1755773791471,3.82731799,184.38,184.27,3.03]
[1755773791969,3.82731799,184.35,184.27,3.03]
[1755773794171,364.3,184.41,184.24,6.37214094]
[1755773794368,3.82731799,184.34,184.23,3.03]
[1755773795666,3.82731799,184.34,184.26,3.03]
[1755773796968,3.82731799,184.37,184.26,3.03]
[1755773797368,3.82731799,184.37,184.26,8.4571]
[1755773797668,3.82731799,184.37,184.26,3.03]
[1755773798071,3.82731799,184.37,184.29,3.03]
[1755773798671,3.82731799,184.37,184.22,3.03]
[1755773798872,3.82731799,184.34,184.22,3.03]
[1755773799272,3.82731799,184.34,184.25,5.4274]
[1755773799472,3.82731799,184.34,184.26,3.03]
[1755773802377,3.82731799,184.34,184.14,368.12731799]
[1755773802378,3.82731799,184.34,184.23,3.03]
[1755773802680,3.82731799,184.31,184.23,3.03]
[1755773803279,3.82731799,184.31,184.23,8.4582]
[1755773803477,3.82731799,184.31,184.23,3.03]
[1755773804378,3.82731799,184.31,184.23,8.4583]
[1755773804578,3.82731799,184.31,184.23,3.03]
[1755773805885,3.82731799,184.31,184.23,8.4582]
[1755773806283,134.64,184.33,184.24,3.03]
[1755773806486,3.82731799,184.34,184.24,3.03]
[1755773806687,3.82731799,184.37,184.24,3.03]
[1755773806986,134.62,184.36,184.24,3.03]
[1755773807186,134.62,184.36,184.2,3.82731799]
[1755773807187,134.62,184.36,184.21,3.03]
[1755773807885,3.82731799,184.34,184.25,3.03]
[1755773809387,3.82731799,184.31,184.22,3.03]
[1755773810284,3.82731799,184.31,184.22,8.4583]
[1755773810487,3.82731799,184.31,184.22,3.03]
[1755773811393,134.66,184.32,184.2,3.03]
[1755773812197,134.66,184.32,184.24,3.03]
[1755773812594,134.66,184.32,184.24,8.458]
[1755773812896,134.66,184.32,184.24,3.03]
[1755773813292,3.82731799,184.34,184.24,3.03]
[1755773813492,134.6,184.33,184.24,3.03]
[1755773817793,134.6,184.33,184.22,5.4285]
[1755773817989,3.82731799,184.31,184.21,2.98]
[1755773819290,3.82731799,184.31,184.22,5.4286]
[1755773821603,3.82731799,184.31,184.21,2.98]
[1755773822804,3.82731799,184.31,184.22,5.4283]
[1755773823500,3.82731799,184.36,184.23,2.98]
[1755773823700,134.3,184.35,184.23,2.98]
[1755773824203,3.82731799,184.33,184.26,5.4272]
[1755773824501,3.82731799,184.33,184.26,8.4072]
[1755773824693,3.82731799,184.33,184.26,2.98]
[1755773825402,134.3,184.32,184.26,2.98]
[1755773827600,4.08961336,184.31,184.25,5.4275]
[1755773827800,4.08961336,184.31,184.27,2.98]
[1755773828002,134.2,184.32,184.27,2.98]
[1755773828394,3.82731799,184.33,184.27,2.98]
[1755773828395,4.09689552,184.31,184.27,2.98]
[1755773828696,134.18,184.32,184.27,2.98]
[1755773829001,4.09707483,184.31,184.27,2.98]
[1755773830799,4.09707483,184.31,184.23,5.4282]
[1755773830800,2.3622921,184.3,184.23,2.98]
[1755773831007,4.09707483,184.29,184.23,2.98]
[1755773831304,4.09707483,184.29,184.23,7.52059708]
[1755773831902,4.09707483,184.29,184.23,2.98]
[1755773832902,136.4422921,184.3,184.23,2.98]
[1755773833107,4.11745442,184.29,184.23,4.54059708]
[1755773833495,4.11745442,184.29,184.26,2.98]
[1755773833703,4.11745442,184.29,184.27,2.98]
[1755773834296,4.11745442,184.29,184.23,4.54059708]
[1755773834503,4.11745442,184.29,184.26,2.98]
[1755773836202,4.11745442,184.29,184.27,2.98]
[1755773836507,2.3622921,184.31,184.28,2.98]
[1755773836707,4.1231905,184.3,184.28,2.98]
[1755773837205,4.1231905,184.3,184.26,2.98]
[1755773837402,4.1231905,184.3,184.24,12.94849708]
[1755773842013,2.3622921,184.31,184.24,7.52059708]
[1755773842312,4.12424694,184.3,184.26,2.98]
[1755773842510,4.12424694,184.3,184.27,2.96]
[1755773842815,2.3622921,184.31,184.27,2.96]
[1755773843010,4.1257634,184.3,184.27,2.96]
[1755773843810,4.1257634,184.3,184.23,7.50059708]
[1755773844011,2.3622921,184.27,184.23,7.50059708]
[1755773844606,2.3622921,184.27,184.24,2.96]
[1755773844811,2.3622921,184.29,184.25,2.96]
[1755773845114,2.3622921,184.29,184.27,2.96]
[1755773845313,133.74,184.3,184.27,2.96]
[1755773845512,4.12939697,184.29,184.27,2.96]
[1755773845816,4.12939697,184.29,184.23,9.96879708]
[1755773846014,4.12939697,184.29,184.25,2.96]
[1755773846213,4.12939697,184.29,184.26,2.96]
[1755773846916,4.12939697,184.29,184.27,2.96]
[1755773847417,4.12939697,184.28,184.27,2.96]
[1755773847616,4.12939697,184.3,184.27,2.96]
[1755773847818,4.12939697,184.29,184.27,2.96]
[1755773848020,4.12939697,184.28,184.27,2.96]
[1755773848220,4.12939697,184.3,184.27,2.96]
[1755773850522,137.80939697,184.3,184.27,2.96]
[1755773850820,4.12939697,184.29,184.27,2.96]
[1755773851116,4.12939697,184.29,184.23,4.54059708]
[1755773851117,2.3622921,184.34,184.26,4.54059708]
[1755773851421,137.74960633,184.33,184.27,7.50059708]
[1755773851617,2.3622921,184.34,184.28,2.96]
[1755773851812,4.12958912,184.33,184.29,2.96]
[1755773852014,136.0022921,184.34,184.28,5.4266]
[1755773852215,4.13131995,184.33,184.31,2.96]
[1755773853619,4.13131995,184.33,184.29,5.4265]
[1755773853825,136.0222921,184.35,184.32,2.96]
[1755773854024,4.13023785,184.34,184.32,2.96]
[1755773855829,4.13023785,184.34,184.27,4.54059708]
[1755773856128,137.75023785,184.34,184.3,2.96]
[1755773856326,2.3622921,184.35,184.27,4.54059708]
[1755773856521,137.70792348,184.34,184.27,4.54059708]
[1755773856728,6.49015068,184.33,184.25,7.50059708]
[1755773857022,2.3622921,184.33,184.27,8.387]
[1755773857227,135.9222921,184.33,184.27,8.387]
[1755773857618,135.9222921,184.33,184.27,2.96]
[1755773858224,2.3622921,184.33,184.27,8.3869]
[1755773858828,2.3622921,184.33,184.28,2.96]
[1755773859023,2.3622921,184.33,184.29,2.96]
[1755773859227,2.3622921,184.33,184.3,2.96]
[1755773859422,2.3622921,184.33,184.28,5.4268]
[1755773859629,2.3622921,184.33,184.31,2.96]
[1755773860634,2.3622921,184.33,184.28,5.4268]
[1755773860926,2.3622921,184.33,184.26,7.52793795]
[1755773861131,135.8022921,184.33,184.26,2.96]
[1755773862031,2.3622921,184.33,184.26,2.96]
[1755773862226,135.8022921,184.33,184.26,7.52793795]
[1755773862426,135.8022921,184.33,184.26,2.96]
[1755773863129,135.7622921,184.33,184.26,2.96]
[1755773863331,135.7622921,184.33,184.26,8.3873]
[1755773863531,135.7622921,184.33,184.26,12.95523795]
[1755773864230,2.3622921,184.33,184.26,12.95523795]
[1755773864425,2.3622921,184.33,184.26,8.3873]
[1755773864632,135.7222921,184.34,184.26,8.3873]
[1755773864832,4.12035727,184.33,184.26,12.95523795]
[1755773865330,4.12035727,184.33,184.26,7.52793795]
[1755773865532,4.12035727,184.33,184.26,2.96]
[1755773865733,2.3622921,184.32,184.26,2.96]
[1755773865934,4.12035727,184.31,184.26,2.96]
[1755773866126,4.12035727,184.31,184.24,4.56793795]
[1755773866326,4.12035727,184.31,184.27,2.96]
[1755773868134,2.3622921,184.32,184.27,2.96]
[1755773868428,2.3622921,184.32,184.25,5.4276]
[1755773868633,2.3622921,184.32,184.28,2.96]
[1755773869137,2.3622921,184.32,184.25,12.95553795]
[1755773869336,2.3622921,184.32,184.25,8.3876]
[1755773873643,2.3622921,184.32,184.25,2.96]
[1755773874341,2.3622921,184.32,184.26,2.93]
[1755773876846,4.12058352,184.31,184.26,2.93]
[1755773877951,4.12058352,184.31,184.27,2.93]
[1755773878352,4.12058352,184.31,184.28,2.93]
[1755773879548,2.3622921,184.32,184.28,2.93]
[1755773879852,4.12061389,184.31,184.28,2.93]
[1755773880651,4.12061389,184.31,184.25,2.93]
[1755773880948,2.3622921,184.35,184.29,2.93]
[1755773881147,2.3622921,184.35,184.3,2.93]
[1755773881148,4.12128235,184.34,184.3,2.93]
[1755773881857,2.3622921,184.35,184.3,2.93]
[1755773882047,4.12148986,184.34,184.3,2.93]
[1755773882957,4.12148986,184.34,184.31,2.93]
[1755773884259,4.12148986,184.34,184.32,2.93]
[1755773885657,4.12148986,184.34,184.28,5.4265]
[1755773885846,4.12148986,184.34,184.31,2.93]
[1755773887056,3.12148986,184.34,184.31,2.93]
[1755773887250,3.12148986,184.34,184.28,2.93]
[1755773887946,135.4822921,184.35,184.28,2.93]
[1755773892759,2.3622921,184.35,184.28,2.93]
[1755773892956,133.1,184.34,184.28,2.93]
[1755773893457,2.3622921,184.33,184.26,4.56793795]
[1755773893659,2.3622921,184.31,184.26,2.93]
[1755773897054,2.3622921,184.31,184.23,7.49793795]
[1755773898360,2.3622921,184.31,184.23,2.93]
[1755773898561,2.3622921,184.28,184.23,2.93]
[1755773898758,135.4622921,184.28,184.23,2.93]
[1755773899059,4.10434849,184.27,184.23,2.93]
[1755773899463,135.4622921,184.28,184.25,2.93]
[1755773899664,12.00948769,184.43,184.19,62.08032653]
[1755773899665,2.3622921,184.31,184.2,2.93]
[1755773899867,4.10278774,184.3,184.21,2.93]
[1755773900268,4.10278774,184.3,184.24,2.93]
[1755773900468,2.3622921,184.28,184.21,2.93]
[1755773902265,133.1,184.27,184.21,2.93]
[1755773903061,133.1,184.27,184.21,8.3588]
[1755773903265,133.1,184.27,184.21,2.93]
[1755773903465,133.1,184.27,184.22,5.4283]
[1755773903663,133.1,184.27,184.23,2.95]
[1755773903867,2.3622921,184.28,184.24,2.95]
[1755773904069,2.3622921,184.28,184.22,5.4283]
[1755773904070,2.3622921,184.28,184.23,2.95]
[1755773904371,2.3622921,184.28,184.25,2.95]
[1755773904868,2.3622921,184.28,184.2,2.95]
[1755773905572,2.3622921,184.28,184.2,8.379]
[1755773907570,2.3622921,184.28,184.21,2.95]
[1755773910475,1.5125264,184.25,184.22,2.95]
[1755773910675,1.5125264,184.25,184.23,2.95]
[1755773911569,1.5125264,184.25,184.2,5.4291]
[1755773911874,1.5125264,184.25,184.24,2.95]
[1755773918874,1.5125264,184.25,184.17,0.94467669]
[1755773918875,1.5125264,184.25,184.22,2.95]
[1755773919573,1.5125264,184.23,184.19,2.95]
[1755773919775,1.5125264,184.23,184.18,1.5125264]
[1755773919972,1.5125264,184.23,184.21,2.95]
[1755773922783,1.5125264,184.23,184.22,2.95]
[1755773923280,1.5125264,184.23,184.17,7.88700309]
[1755773923486,1.5125264,184.23,184.21,2.95]
[1755773923687,1.5125264,184.23,184.18,2.95]
[1755773924283,1.5125264,184.23,184.19,2.95]
[1755773925482,1.5125264,184.23,184.19,8.3794]
[1755773925683,1.5125264,184.23,184.2,2.95]
[1755773925879,1.5125264,184.23,184.17,2.45720309]
[1755773926084,1.5125264,184.23,184.21,2.95]
[1755773926586,1.5125264,184.23,184.18,2.95]
[1755773927285,1.5125264,184.2,184.14,2.95]
[1755773927682,85.9412705,184.25,184.07,9.09675807]
[1755773927683,1.5125264,184.22,184.16,2.95]
[1755773929180,1.5125264,184.2,184.16,2.95]
[1755773929789,1.5125264,184.2,184.17,2.95]
[1755773929979,1.5125264,184.2,184.16,2.95]
[1755773930183,1.5125264,184.2,184.18,2.95]
[1755773930487,1.5125264,184.2,184.19,2.95]
[1755773932991,1.5125264,184.2,184.13,6.9435264]
[1755773933190,1.5125264,184.2,184.17,2.91]
[1755773933588,1.5125264,184.2,184.18,2.91]
[1755773933788,1.5125264,184.2,184.14,2.91]
[1755773934085,1.5125264,184.18,184.16,2.91]
[1755773934993,1.5125264,184.18,184.17,2.91]
[1755773936786,1.5125264,184.19,184.18,2.91]